Cogmind - Beta 13 @@@ ROGUE MODE // 2024.05.24 @ 17:13:14 Player: Dosh Result: Destroyed by G-47 Trooper with Particle Gun Performance ------------- Evolutions (0) 0 Regions Visited (2) 400 Robots Destroyed (29) 145 Value Destroyed (651) 651 Prototype IDs (5) 100 Alien Tech Used (0) 0 Bonus (0) 0 TOTAL SCORE: 1296 Bonus ------- None Cogmind --------- Core Integrity 0/250 Matter 277/300 Energy 248/250 System Corruption 0% Temperature Cool (9) Movement Treading (160) Location -10/Mines Parts ------- > --- POWER (1) -------- Ion Engine > --- PROPULSION (2) --- Light Treads Light Treads > --- UTILITY (2) ------ Large Storage Unit > --- WEAPON (2) ------- Light Assault Rifle Light Assault Rifle > --- INVENTORY (15) --- Light Ion Engine Light Treads Light Treads Light Treads High-capacity Storage Unit High-capacity Matter Pod (200) Structural Scanner Hacking Suite Medium Laser Small Laser Light Assault Rifle Grenade Launcher Peak State ------------ > --- POWER ------------ Ion Engine > --- PROPULSION ------- Light Treads Light Treads > --- UTILITY ---------- Medium Storage Unit Large Storage Unit > --- WEAPON ----------- Light Assault Rifle Light Assault Rifle > --- INVENTORY -------- Light Ion Engine Light Treads Light Treads Light Treads Small Storage Unit High-capacity Matter Pod Hacking Suite Medium Laser Small Laser [Rating: 8] Favorites ----------- Power Ion Engine Engine Ion Engine Propulsion Light Treads Treads Light Treads Utility Large Storage Unit Storage Large Storage Unit Weapon Light Assault Rifle Energy Gun EM Pulse Gun Ballistic Gun Light Assault Rifle Ballistic Cannon Light Cannon Launcher Grenade Launcher Build | -11 -10 -10 ------- Run | Yrd Mat Min Slots Evolved . | . . . Power . | . . . Propulsion . | . . . Utility . | . . . Weapon . | . . . Parts Attached 18 | 6 10 2 Power 1 | 1 . . Engine 1 | 1 . . Core . | . . . Reactor . | . . . Propulsion 5 | 2 3 . Treads 5 | 2 3 . Leg . | . . . Wheel . | . . . Hover . | . . . Flight . | . . . Utility 3 | 1 2 . Device . | . . . Storage 3 | 1 2 . Processor . | . . . Hackware . | . . . Protection . | . . . Artifact . | . . . Weapon 9 | 2 5 2 Energy Gun 3 | 2 1 . Energy Cannon . | . . . Ballistic Gun 4 | . 3 1 Ballistic Cannon 1 | . 1 . Launcher 1 | . . 1 Special Weapon . | . . . Impact Weapon . | . . . Slashing Weapon . | . . . Piercing Weapon . | . . . Special Melee Weapon . | . . . Unidentified Prototypes . | . . . Parts Lost 4 | . 4 . Power . | . . . Propulsion 1 | . 1 . Utility . | . . . Weapon 3 | . 3 . Highest Loss Streak 1 | . 1 . To Critical Strikes . | . . . Average Slot Usage (%) 82 | . 81 85 Engine 14 | . 14 14 Treads 26 | . 25 28 Storage 14 | . 14 14 Energy Gun 4 | . 5 . Ballistic Gun 20 | . 18 27 Ballistic Cannon 2 | . 3 . Naked Turns . | . . . Heaviest Build 37 | 14 37 29 Greatest Support 40 | 40 40 40 Greatest Overweight (x) . | . . . Average Overweight (x) . | . . . Largest Inventory Capacity 15 | 8 15 15 Average Capacity 11 | 7 11 15 Most Carried 12 | 2 12 12 Average Carried 7 | 1 6 11 Final Capacity 15 | 8 15 15 Final Carried 12 | 2 10 12 Class Distribution -------------------- 100% | Mutant Dominant Class ---------------- Mutant | -10/Materials Mutant | -10/Mines Resources | -11 -10 -10 ----------- Run | Yrd Mat Min Matter Collected 784 | 170 543 71 Remotely . | . . . Salvage Created 810 | . 552 258 Parts 62 | . 41 21 Haulers Intercepted 2 | . 2 . Recyclers Shooed 2 | . 1 1 Parts Field Recycled . | . . . Retrieved Matter . | . . . Parts Self-Destructed . | . . . Prevented . | . . . Kills | -11 -10 -10 ------- Run | Yrd Mat Min Combat Hostiles Destroyed 22 | . 14 8 Guns 12 | . 7 5 Cannons 7 | . 7 . AOE 3 | . . 3 Classes Destroyed 7 | . 7 . Worker 1 | . 1 . Builder 2 | . 1 1 Hauler 2 | . 2 . Operator 1 | . 1 . Watcher 1 | . 1 . Swarmer 9 | . 6 3 Grunt 13 | . 8 5 Best Kill Streak 4 | . 4 3 Combat Bots Only 4 | . 4 3 Max Kills in Single Turn 2 | . 2 2 Gunslinging . | . . . Exploded 2 | . . 2 Melee . | . . . Uniques/NPCs Destroyed . | . . . Combat | -11 -10 -10 -------- Run | Yrd Mat Min Hostile Shots Fired 133 | . 109 24 Missed 30 | . 26 4 Damage Taken 1085 | . 808 277 Core 262 | . 183 79 Absorbed by Shields . | . . . Regen/Repaired (Parts) 173 | . 173 . Core Remaining (%) 100 | 100 . . Volleys Fired 93 | . 68 25 Largest 2 | . 2 2 Hottest 90 | . 90 40 Shots Fired 174 | . 127 47 Gun 136 | . 92 44 Cannon 35 | . 35 . Launcher 3 | . . 3 Special . | . . . Kinetic 129 | . 85 44 Thermal 16 | . 16 . Explosive 3 | . . 3 Electromagnetic 26 | . 26 . Robot Hit Streak 9 | . 8 9 Robot Miss Streak 4 | . 4 1 Penetration Max . | . . . Secondary Targets 1 | . . 1 Max Gunslinging Chain 1 | . . 1 Shots Hit Robots 113 | . 76 37 Core Hits 58 | . 32 26 Critical Kills . | . . . Critical Parts Destroyed 1 | . . 1 Critical Strikes 3 | . 2 1 Burn 1 | . 1 . Destroy 1 | . . 1 Blast 1 | . 1 . Melee Attacks . | . . . Impact . | . . . Slashing . | . . . Piercing . | . . . Sneak Attacks . | . . . Combat Hostiles . | . . . Follow-up Attacks . | . . . Damage Inflicted 1585 | 5 1002 578 Guns 878 | . 590 288 Cannons 380 | . 380 . Explosions 267 | . . 267 Melee . | . . . Ramming 60 | 5 32 23 Kinetic 945 | . 657 288 Thermal 144 | . 144 . Explosive 267 | . . 267 Electromagnetic 169 | . 169 . Impact . | . . . Slashing . | . . . Piercing . | . . . Highest Corruption . | . . . Average Corruption . | . . . Corruption Purged . | . . . Corruption Blocked . | . . . Overload Shots . | . . . Overflow Damage 5 | . 5 . Projectiles 5 | . 5 . Explosions . | . . . Melee . | . . . Knockbacks 7 | . 7 . Impact . | . . . Kinetic 7 | . 7 . Secondary . | . . . Self-Inflicted Damage . | . . . Shots . | . . . Rammed 12 | 1 8 3 Targets Rammed 13 | 1 9 3 Kicked . | . . . Crushed 1 | . 1 . Highest Temperature 260 | . 260 18 Average Temperature 71 | . 82 8 Received Heat Transfer 387 | . 240 147 Siege Activations . | . . . Robots Corrupted . | . . . Combat Hostiles . | . . . Parts Fried 1 | . 1 . Impact Corruptions . | . . . Robots Melted . | . . . Combat Hostiles . | . . . Parts Melted 2 | . 2 . Heat Transferred 481 | . 481 . Parts Sabotaged . | . . . Parts Stolen . | . . . Parts Stripped . | . . . Power Chain Reactions . | . . . Alert | -11 -10 -10 ------- Run | Yrd Mat Min Peak Influence 231 | . 231 225 Initial . | . . . Average 101 | . 114 83 Maximum Alert Level 1 | . 1 1 Low Security (%) 77 | 100 70 91 Level 1 22 | . 29 8 Level 2 . | . . . Level 3 . | . . . Level 4 . | . . . Level 5 . | . . . High Security . | . . . Max Security . | . . . Squads Dispatched 4 | . 4 . Investigation 3 | . 3 . Extermination . | . . . Reinforcement 1 | . 1 . Assault . | . . . Garrison . | . . . Intercept . | . . . Searches Triggered . | . . . Construction Impeded . | . . . Haulers Reinforced . | . . . Active Scanning Responses . | . . . Cargo Convoy Interrupts . | . . . Stealth | -11 -10 -10 --------- Run | Yrd Mat Min Distress Signals . | . . . Communications Jammed . | . . . Distress Signals . | . . . Times Spotted 35 | . 24 11 Peak Tracking Total 5 | . 5 4 Tactical Retreats 1 | . 1 . Traps | -11 -10 -10 ------- Run | Yrd Mat Min Traps Triggered . | . . . Indirectly . | . . . Trap Hack Attempts . | . . . Triggered . | . . . Disarmed . | . . . Reprogrammed . | . . . Reused . | . . . Traps Extracted . | . . . Installed . | . . . Triggered . | . . . Machines | -11 -10 -10 ---------- Run | Yrd Mat Min Machines Disabled 2 | . . 2 Max in Single Turn 2 | . . 2 Machines Repaired . | . . . Machines Dismantled . | . . . Machines Sabotaged . | . . . Overloaded Fab Kills . | . . . Hacking | -11 -10 -10 --------- Run | Yrd Mat Min Machines Accessed 8 | . 7 1 Terminals 5 | . 4 1 Fabricators . | . . . Repair Stations 1 | . 1 . Recycling Units 2 | . 2 . Scanalyzers . | . . . Garrison Access . | . . . Total Hacks 23 | . 20 3 Successful 15 | . 13 2 Failed 8 | . 7 1 Catastrophic . | . . . Database Lockouts . | . . . Manual 10 | . 7 3 Terminals 14 | . 11 3 Fabricators . | . . . Repair Stations 5 | . 5 . Recycling Units 4 | . 4 . Scanalyzers . | . . . Garrison Access . | . . . Terminal Hacks 8 | . 6 2 Robot Schematic 1 | . . 1 Robot Analysis 2 | . 2 . Prototype ID Bank 3 | . 2 1 Unreport Threat 1 | . 1 . Hauler Manifests 1 | . 1 . Fabricator Hacks . | . . . Repair Station Hacks 4 | . 4 . Scan Component 2 | . 2 . Repair 2 | . 2 . Recycling Unit Hacks 1 | . 1 . Retrieve Components 1 | . 1 . Scanalyzer . | . . . Garrison Access Hacks . | . . . Unauthorized Hacks 2 | . 2 . Terminals 1 | . 1 . Assimilate 1 | . 1 . Fabricators . | . . . Repair Stations . | . . . Recycling Units 1 | . 1 . Tunnel 1 | . 1 . Scanalyzers . | . . . Garrison Access . | . . . Data Cores Recovered . | . . . Used . | . . . Hacking Detections 7 | . 6 1 Full Trace Events 2 | . 2 . Feedback Events . | . . . Feedback Blocked . | . . . Robot Schematics Acquired 1 | . . 1 Robots Built . | . . . Authchips . | . . . Time . | . . . Total Robot Build Rating . | . . . Part Schematics Acquired . | . . . Parts Built . | . . . Authchips . | . . . Time . | . . . Total Part Build Rating . | . . . Parts Repaired 2 | . 2 . Time 52 | . 52 . Parts Recycled . | . . . Recycled Matter . | . . . Retrieved Matter . | . . . Retrieved Components 9 | . 9 . Parts Scanalyzed . | . . . Part Schematics Acquired . | . . . Parts Damaged . | . . . Bothacking | -11 -10 -10 ------------ Run | Yrd Mat Min Used RIF Installer . | . . . Robots Hacked . | . . . Non-combat . | . . . Combat . | . . . Robot Hacks Applied . | . . . Relay Couplers Released . | . . . Fabnet Peak Effective % . | . . . Robots Rewired . | . . . Allies Hacked . | . . . Hacks Repelled . | . . . Allies | -11 -10 -10 -------- Run | Yrd Mat Min Total Allies 1 | . 1 . Largest Group 1 | . 1 1 Highest-Rated Group 10 | . 10 10 Highest-Rated Ally 10 | . 10 10 Total Orders 2 | . 2 . STAY 1 | . 1 . FOLLOW 1 | . 1 . Ally Attacks . | . . . Total Damage . | . . . Kills . | . . . Allies Corrupted . | . . . Allies Melted . | . . . Intel | -11 -10 -10 ------- Run | Yrd Mat Min Robot Analysis Total 2 | . 2 . Derelict Logs Recovered 1 | . . 1 Drone Launches . | . . . Drone Recoveries . | . . . Exploration | -11 -10 -10 ------------- Run | Yrd Mat Min Turns Passed 1772 | 84 1214 474 Spaces Moved 869 | 49 575 245 Core 5 | 5 . . Treads 864 | 44 575 245 Legs . | . . . Wheels . | . . . Hover . | . . . Flight . | . . . Fastest Speed 50 | 50 160 160 Average Speed 159 | 148 160 160 Slowest Speed 160 | 160 160 160 Overloaded Moves . | . . . Propulsion Burnouts . | . . . Robots Hopped . | . . . Cave-ins Triggered . | . . . Exploration Rate (%) 54 | 4 95 65 Regions Visited 2 Branch Regions 1 Pre-discovered Areas 2 | . 1 1 Known Exits Taken . | . . . Unknown Exits Taken 2 | 1 1 . Scrap Searched 1 | . . 1 Spaces Dug . | . . . Terrain Destroyed 14 | . . 14 Melee . | . . . Projectile . | . . . AOE 14 | . . 14 Terrain Rammed . | . . . Walls Destroyed . | . . . Machines Disabled . | . . . Actions | -11 -10 -10 --------- Run | Yrd Mat Min Total 1091 | 57 746 288 Wait 79 | . 68 11 Move 867 | 48 574 245 Hop . | . . . Pick Up 15 | 2 11 2 Fast Attach 11 | 6 5 . Attach 2 | . 2 . Detach 2 | . 2 . Swap 5 | . 3 2 Drop 4 | . 4 . Fire 93 | . 68 25 Melee . | . . . Ram . | . . . Kick . | . . . Crush 13 | 1 9 3 Escape Stasis . | . . . Rewire . | . . . Trap . | . . . Miscellaneous . | . . . Route ------- -11/Scrapyard -10/Materials (discovered 4 exits: [*Mat x3] / *Min) -10/Mines (discovered 1 exit: [*Mat]) History --------- Turn | Location | Event 3 | -11/Scrapyard | Discovered new exit (range 15) 85 | -11/Scrapyard | Entered Materials 267 | -10/Materials | Discovered new exit (range 15) 300 | -10/Materials | Build established: Mutant 535 | -10/Materials | Discovered new exit (range 4) 541 | -10/Materials | Core integrity fell below 50% 792 | -10/Materials | Discovered new exit (range 12) 878 | -10/Materials | Repaired Lgt. Assault Rifle 905 | -10/Materials | Repaired Lgt. Treads 1019 | -10/Materials | Discovered new exit (range 16) 1299 | -10/Materials | Entered Mines 1299 | -10/Mines | Accompanied by 1 ally 1340 | -10/Mines | Discovered new exit (range 7) 1446 | -10/Mines | Learned location of Storage (-9) 1663 | -10/Mines | Core integrity fell below 20% 1773 | -10/Mines | Destroyed by G-47 Trooper with Particle Gun Last Messages --------------- >>Prototypes Downloading prototype IDs... Imp. Medium Laser Adv. Beam Cannon 01562_ U-05 Engineer builds a Wall. 01564_ The unstable cave ceiling collapses. 01566_ U-05 Engineer lays Concrete. 01569_ U-05 Engineer builds a Wall. 01572_ U-05 Engineer lays Concrete. 01578_ U-05 Engineer builds a Wall. 01660_ G-47 Trooper destroyed. 01660_ Switching to secondary target: G-34 Mercenary. 01661_ Technician 1a reports 0b10 security level has risen to 1. 01675_ G-34 Mercenary destroyed. 01682_ R-06 Scavenger collects Aluminum Leg. 01684_ Acquired 56 matter. 01699_ Technician 1a reports 0b10 security level has lowered to 0. 01762_ G-47 Trooper suffers critical hit (Destroy). 01762_ Destroyed Aluminum Leg. 01768_ G-47 Trooper destroyed. Map ----- +----------------------------------------------------+ | ?????####### ##### #???????????????????????????? | | ???????????# #?????????????????????????????????? | | ???????????# #?????????????????????????????????? | | ???????????# #?????????????????????????????????? | | ???????????# #?????????????????????????????????? | | ???????????# #?????????????????????????????????? | | ???????????# #?????????????????????????????????? | | ???????????# ###???????????????????????????????? | | ???????????# #???????????????????????????????? | | ???????????### #???????????????????????????????? | | ?????###?????# ##??????????????????????????????? | | ????## ##??## ##?????????????????????????????? | | ???## #??# #?????????????????????????????? | | ???# #### #?????????????????????????????? | | ???# ## #??????#??????????????????????? | | ????# #??#### ??????????????????????? | | ????# ##?# ???????????????????????? | | ????## ## ???????????????????????? | | ?????## ?????????????????????? | | ??????## #### ?????????????????????? | | ???????# #??###### ?????????????????????? | | ???????# #????????# ##?????????????????????? | | ???????# #?????????# ##??????????????????????? | | ???????# #??????????# #????????? ????????????? | | ???????# #?########## ###### """ "????????????? | | ???????# #?# o=@gggt """ "????????????? | | ???????# #?# ############## """ "????????????? | | ???????#*=#?# ####?????????????? ????????????? | | ??????##= ### # ##???????????????????????????? | | ??????#=% ###?????????????????????????? | | ?????## [ ##????????????????????????? | | ????## #????????????????????????? | | ????# ### ##????????????????????????? | | ????# ##?####?????????????????????????? | | ????## #####???????????????????????????????? | | ?????#######???????????????????????????????????? | | ???????????????????????????????????????????????? | | ???????????????????????????????????????????????? | | | | | | | | | | | | | | | | | | | | | | | | | +----------------------------------------------------+ Best States ------------- Heat Dissipation 25 Energy Generation 10 Energy Capacity 250 Matter Stores 300 Matter Capacity 300 Sight Range 16 Terrain Scan Density 10 Evasion (%) 40 Recoil Reduction 2 Item Schematics ----------------- None Robot Schematics ------------------ M-13 Machinist | -10/Mines | Hacked Fabricated ------------ Nothing Alien Tech Used ----------------- None Achievements -------------- None Challenges ------------ None Game ------ Seed MiningTitaniumDatajack Manual? 0 Play Time 00:08:35 Cumulative 384.0 hours Start 2024.05.24 @ 17:06:18 End 2024.05.24 @ 17:13:14 Sessions 1 Manual Loads 0 Difficulty Rogue Special Mode None Game No. 242 Rogue 242 Adventurer 0 Explorer 0 Win Type - Total 24 Types 16/2/3/1/1/0/0/1/0 Lore% 85 Gallery% 87 Achievement% 81 Wizard Run 0 Options --------- Layout 0 ASCII 0 Keyboard 1 Movement Numpad Keybinds 0 Fullscreen 2 Font 18/SmallcapsGlow Map View 76x50 Zoom Use 0% Tactical HUD 1 Map Filters NONE Filters NONE Steam 1 RUN: 379a0c1b-90e7-4748-a620-4fbab4434dec